[Event "SixDays Budapest IM-B 09-2024"]
[Site "Budapest"]
[Date "2024.09.24"]
[Round "1.3"]
[White "Li, Xueyi"]
[Black "Polyik, Peter"]
[Result "0-1"]
[ECO "D45"]
[WhiteElo "2187"]
[BlackElo "2304"]
[Annotator "RC"]
[PlyCount "76"]
[EventDate "2024.09.24"]
[EventType "tourn"]
[EventCountry "HUN"]
[SourceTitle "playchess.com"]
[Source "ChessBase"]
[SourceQuality "1"]
[TimeControl "5400+30"]

1. d4 {[%emt 0:00:04]} d5 {[%emt 0:00:06]} 2. c4 {[%emt 0:00:13]} e6 {[%emt 0:00:03]} 3. Nf3 {[%emt 0:00:06]} Nf6 {[%emt 0:00:06]} 4. Nc3 {[%emt 0:00:04]} c6 {[%emt 0:00:33]} 5. e3 {[%emt 0:01:09]} Nbd7 {[%emt 0:00:06]} 6. Be2 {[%emt 0:00:07]} b6 {[%emt 0:04:24]} 7. cxd5 {[%emt 0:04:05]} cxd5 {[%emt 0:01:19]} 8. Ne5 {[%emt 0:02:15]} Nxe5 {[%emt 0:03:46]} 9. dxe5 {[%emt 0:00:06]} Nd7 {[%emt 0:01:03]} 10. e4 {[%emt 0:05:27]} dxe4 {[%emt 0:12:56]} 11. Qd4 {[%emt 0:01:57]} Nc5 {[%emt 0:12:35]} 12. Qxd8+ {[%emt 0:00:27]} Kxd8 {[%emt 0:00:03]} 13. Bg5+ {[%emt 0:00:05]} Be7 {[%emt 0:00:14]} 14. O-O-O+ {[%emt 0:01:26]} Nd3+ {[%emt 0:11:35]} 15. Kb1 {[%emt 0:00:22]} Bxg5 {[%emt 0:00:07]} 16. Nxe4 {[%emt 0:00:04]} Ke7 {[%emt 0:01:25]} 17. Bxd3 {[%emt 0:08:31]} Bf4 {[%emt 0:03:18]} 18. g3 {[%emt 0:00:10]} Bxe5 {[%emt 0:01:22]} 19. f4 {[%emt 0:00:05]} Bb8 {[%emt 0:02:58]} 20. Ng5 {[%emt 0:09:12]} Bb7 {[%emt 0:02:05]} 21. Rhe1 {[%emt 0:01:42]} Bd6 {[%emt 0:10:33]} 22. Bxh7 {[%emt 0:19:44]} Rxh7 {[%emt 0:07:53]} 23. Nxh7 {[%emt 0:00:44]} f6 {[%emt 0:00:06]} 24. Rd4 {[%emt 0:18:56]} Bc5 {[%emt 0:01:03]} 25. Rd2 {[%emt 0:07:51]} Rh8 {[%emt 0:02:45]} 26. a3 {[%emt 0:06:25]} Rxh7 {[%emt 0:03:48]} 27. f5 {[%emt 0:00:55]} e5 {[%emt 0:03:47]} 28. b4 {[%emt 0:00:15]} Bd6 {[%emt 0:00:04]} 29. Red1 {[%emt 0:00:18]} Bf3 {[%emt 0:00:05]} 30. Rxd6 {[%emt 0:00:32]} Bxd1 {[%emt 0:00:04]} 31. Rxd1 {[%emt 0:00:04]} Rxh2 {[%emt 0:00:03]} 32. Rc1 {[%emt 0:00:04]} Kd6 {[%emt 0:03:04]} 33. Rd1+ {[%emt 0:00:05]} Kc6 {[%emt 0:00:04]} 34. Rc1+ {[%emt 0:00:03]} Kd5 {[%emt 0:00:45]} 35. Rc7 {[%emt 0:00:06]} e4 {[%emt 0:00:40]} 36. Rxg7 {[%emt 0:00:53]} e3 {[%emt 0:01:26]} 37. Re7 {[%emt 0:01:06]} Kd4 {[%emt 0:00:05]} 38. Kc1 {[%emt 0:00:35]} Kd3 {[%emt 0:00:06]} 0-1

[Event "SixDays Budapest IM-B 09-2024"]
[Site "Budapest"]
[Date "2024.09.24"]
[Round "1.4"]
[White "Pribelszky, Bence Daniel"]
[Black "Skytte, Rasmus"]
[Result "1/2-1/2"]
[ECO "B15"]
[WhiteElo "2408"]
[BlackElo "2348"]
[Annotator "TA"]
[PlyCount "42"]
[EventDate "2024.09.24"]
[EventType "tourn"]
[EventCountry "HUN"]
[SourceTitle "playchess.com"]
[Source "ChessBase"]
[SourceQuality "1"]
[TimeControl "5400+30"]

{[%evp 10,42,35,8,19,13,14,4,26,26,42,37,27,17,44,19,33,24,29,21,32,11,14,0,3,5,8,-33,-32,-29,-35,-30,-30,-34,-7]} 1. e4 {[%emt 0:00:03]} c6 {[%emt 0:00:18]} 2. d4 {[%emt 0:00:12]} d5 {[%emt 0:00:16]} 3. Nc3 {[%emt 0:00:06]} dxe4 {[%emt 0:00:32]} 4. Nxe4 {[%emt 0:00:07]} Nf6 {[%emt 0:00:42]} 5. Nxf6+ {[%emt 0:00:10]} exf6 {[%emt 0:00:02]} 6. Be3 {[%emt 0:00:13]} Bd6 {[%emt 0:01:20]} 7. Bd3 {[%emt 0:00:05]} O-O {[%emt 0:01:10]} 8. Ne2 {[%emt 0:00:10]} Qc7 {[%emt 0:06:15] The position is equal.} (8... Bf5 $5) 9. c4 {[%emt 0:04:52][%cal Bc2c4,Bc4c5][%mdl 32]} Re8 {[%emt 0:06:50][%cal Oc6c5]} 10. c5 {[%emt 0:10:29]} Bf8 {[%emt 0:01:37]} 11. O-O {[%emt 0:00:29]} Bg4 {[%emt 0:04:01]} 12. Qd2 {[%emt 0:16:57]} Bxe2 {[%emt 0:01:01]} 13. Bxe2 {[%emt 0:00:22]} Nd7 {[%emt 0:01:54][%cal Bb8d7,Bd7f6,Bf6e4][%mdl 32]} 14. Rad1 {[%emt 0:18:22]} f5 {[%emt 0:05:31]} 15. Bf4 {[%emt 0:00:30]} Qc8 {[%emt 0:00:30]} 16. Bf3 {[%emt 0:03:28]} Nf6 {[%emt 0:01:36]} 17. Be5 {[%emt 0:02:03] With the idea Bxf6.} Ne4 {[%emt 0:03:11]} 18. Qf4 {[%emt 0:12:19][%cal Oh2h4]} f6 {[%emt 0:04:50]} 19. Bxe4 {[%emt 0:01:45]} fxe4 {[%emt 0:04:35]} 20. Bd6 {[%emt 0:00:06]} Bxd6 {[%emt 0:03:38]} 21. Qxd6 {[%emt 0:00:29]} Re6 {[%emt 0:02:53] Weighted Error Value: White=0.12 (very precise) /Black=0.08 (flawless) .  Inaccurate:     	White=1     	Black=2      OK:         	White=3     	Black=4} 1/2-1/2

[Event "SixDays Budapest IM-B 09-2024"]
[Site "Budapest"]
[Date "2024.09.24"]
[Round "1.5"]
[White "Tippa, Aswath Srisai"]
[Black "Rodgers, Jack"]
[Result "1-0"]
[ECO "A50"]
[WhiteElo "1648"]
[BlackElo "2110"]
[Annotator "RC"]
[PlyCount "79"]
[EventDate "2024.09.24"]
[EventType "tourn"]
[EventCountry "HUN"]
[SourceTitle "playchess.com"]
[Source "ChessBase"]
[SourceQuality "1"]
[TimeControl "5400+30"]

1. d4 {[%emt 0:00:18]} Nf6 {[%emt 0:00:20]} 2. c4 {[%emt 0:00:27]} b6 {[%emt 0:00:19]} 3. Nc3 {[%emt 0:00:23]} Bb7 {[%emt 0:00:10]} 4. Qc2 {[%emt 0:00:13]} d5 {[%emt 0:00:19]} 5. cxd5 {[%emt 0:00:11]} Nxd5 {[%emt 0:00:17]} 6. Nf3 {[%emt 0:00:10]} e6 {[%emt 0:02:18]} 7. e4 {[%emt 0:00:14]} Nxc3 {[%emt 0:01:13]} 8. bxc3 {[%emt 0:00:10]} c5 {[%emt 0:01:31]} 9. Bd3 {[%emt 0:00:23]} cxd4 {[%emt 0:02:36]} 10. cxd4 {[%emt 0:00:12]} Bb4+ {[%emt 0:00:46]} 11. Bd2 {[%emt 0:01:48]} Bxd2+ {[%emt 0:01:18]} 12. Qxd2 {[%emt 0:00:12]} O-O {[%emt 0:00:52]} 13. O-O {[%emt 0:04:42]} Nc6 {[%emt 0:04:32]} 14. Bc2 {[%emt 0:10:36]} Rc8 {[%emt 0:04:32]} 15. Rad1 {[%emt 0:00:23]} Qd6 {[%emt 0:10:55]} 16. Rfe1 {[%emt 0:09:22]} Rfd8 {[%emt 0:02:59]} 17. Bb1 {[%emt 0:05:50]} e5 {[%emt 0:04:45]} 18. d5 {[%emt 0:01:16]} Ne7 {[%emt 0:00:56]} 19. a4 {[%emt 0:03:21]} f6 {[%emt 0:04:25]} 20. Bd3 {[%emt 0:06:07]} Rc5 {[%emt 0:03:07]} 21. Qb4 {[%emt 0:02:43]} Kf8 {[%emt 0:01:53]} 22. Rb1 {[%emt 0:00:36]} Ra5 {[%emt 0:04:44]} 23. Qb3 {[%emt 0:02:46]} Ba6 {[%emt 0:10:35]} 24. Bxa6 {[%emt 0:03:35]} Rxa6 {[%emt 0:00:01]} 25. Nd2 {[%emt 0:01:20]} Qd7 {[%emt 0:01:05]} 26. Ra1 {[%emt 0:00:39]} Ra5 {[%emt 0:02:49]} 27. Qb4 {[%emt 0:02:33]} Rc8 {[%emt 0:01:32]} 28. Nb3 {[%emt 0:01:05]} Ra6 {[%emt 0:00:48]} 29. h3 {[%emt 0:02:46]} Rc2 {[%emt 0:04:49]} 30. a5 {[%emt 0:00:59]} Kf7 {[%emt 0:03:07]} 31. Rec1 {[%emt 0:03:33]} Rxc1+ {[%emt 0:06:21]} 32. Rxc1 {[%emt 0:00:10]} bxa5 {[%emt 0:00:24]} 33. Nxa5 {[%emt 0:00:38]} Rb6 {[%emt 0:00:49]} 34. Qc3 {[%emt 0:00:44]} Rb8 {[%emt 0:03:51]} 35. Qc7 {[%emt 0:01:05]} Qd8 {[%emt 0:05:26]} 36. d6 {[%emt 0:00:42]} Rc8 {[%emt 0:02:05]} 37. Qxd8 {[%emt 0:00:10]} Rxd8 {[%emt 0:00:14]} 38. dxe7 {[%emt 0:00:09]} Rd7 {[%emt 0:00:35]} 39. Nc6 {[%emt 0:00:13]} a5 {[%emt 0:00:17]} 40. Rb1 {[%emt 0:00:07]} 1-0

[Event "SixDays Budapest IM-B 09-2024"]
[Site "Budapest"]
[Date "2024.09.25"]
[Round "2.1"]
[White "Skytte, Rasmus"]
[Black "Valkova, Angelika"]
[Result "1-0"]
[ECO "A06"]
[WhiteElo "2348"]
[BlackElo "2068"]
[Annotator "RC"]
[PlyCount "67"]
[EventDate "2024.09.24"]
[EventType "tourn"]
[EventCountry "HUN"]
[SourceTitle "playchess.com"]
[Source "ChessBase"]
[SourceQuality "1"]
[TimeControl "5400+30"]

1. Nf3 {[%emt 0:01:36]} d5 {[%emt 0:00:10]} 2. g3 {[%emt 0:00:34]} Nf6 {[%emt 0:02:19]} 3. Bg2 {[%emt 0:00:49]} Nbd7 {[%emt 0:00:31]} 4. O-O {[%emt 0:01:18]} e5 {[%emt 0:00:06]} 5. d4 {[%emt 0:01:26]} e4 {[%emt 0:03:19]} 6. Ne5 {[%emt 0:02:19]} Nxe5 {[%emt 0:04:06]} 7. dxe5 {[%emt 0:00:11]} Ng4 {[%emt 0:00:12]} 8. c4 {[%emt 0:02:02]} c6 {[%emt 0:03:22]} 9. cxd5 {[%emt 0:04:37]} cxd5 {[%emt 0:05:18]} 10. Nc3 {[%emt 0:01:34]} Be6 {[%emt 0:01:08]} 11. Qa4+ {[%emt 0:01:47]} Qd7 {[%emt 0:00:57]} 12. Qxd7+ {[%emt 0:02:06]} Kxd7 {[%emt 0:00:04]} 13. Rd1 {[%emt 0:00:50]} Kc6 {[%emt 0:03:29]} 14. h3 {[%emt 0:04:17]} Nxe5 {[%emt 0:02:48]} 15. Bf4 {[%emt 0:00:32]} Nc4 {[%emt 0:09:47]} 16. Rac1 {[%emt 0:24:48]} Nxb2 {[%emt 0:00:30]} 17. Nxd5+ {[%emt 0:00:50]} Bc5 {[%emt 0:09:53]} 18. Ne7+ {[%emt 0:03:07]} Kb5 {[%emt 0:08:51]} 19. Rb1 {[%emt 0:06:36]} Rad8 {[%emt 0:17:29]} 20. Rxb2+ Ka6 21. Rxd8 {[%emt 0:02:47]} Rxd8 {[%emt 0:00:37]} 22. Bxe4 Rd1+ {[%emt 0:02:20]} 23. Kh2 {[%emt 0:04:11]} Bxe7 {[%emt 0:00:43]} 24. Bxb7+ {[%emt 0:00:23]} Ka5 {[%emt 0:00:08]} 25. Bc6 {[%emt 0:01:03]} Bd6 {[%emt 0:05:41]} 26. Bd2+ {[%emt 0:00:28]} Rxd2 {[%emt 0:00:05]} 27. Rxd2 {[%emt 0:00:14]} Bc5 {[%emt 0:00:15]} 28. Kg2 {[%emt 0:02:05]} Kb4 {[%emt 0:00:41]} 29. Bd5 {[%emt 0:01:33]} a5 {[%emt 0:03:27]} 30. Bxe6 {[%emt 0:00:56]} fxe6 {[%emt 0:00:03]} 31. Rd3 {[%emt 0:00:22]} e5 {[%emt 0:00:26]} 32. Kf3 {[%emt 0:00:30]} Kc4 {[%emt 0:00:51]} 33. Ke4 {[%emt 0:00:24]} Bd4 {[%emt 0:00:10]} 34. f4 {[%emt 0:00:15]} 1-0

[Event "SixDays Budapest IM-B 09-2024"]
[Site "Budapest"]
[Date "2024.09.25"]
[Round "2.2"]
[White "Nanditha V"]
[Black "Rodgers, Jack"]
[Result "0-1"]
[ECO "B35"]
[WhiteElo "1903"]
[BlackElo "2110"]
[Annotator "RC"]
[PlyCount "62"]
[EventDate "2024.09.24"]
[EventType "tourn"]
[EventCountry "HUN"]
[SourceTitle "playchess.com"]
[Source "ChessBase"]
[SourceQuality "1"]
[TimeControl "5400+30"]

1. e4 {[%emt 0:03:15]} c5 {[%emt 0:00:09]} 2. Nf3 {[%emt 0:01:03]} g6 {[%emt 0:00:07]} 3. d4 {[%emt 0:00:29]} cxd4 {[%emt 0:00:05]} 4. Nxd4 {[%emt 0:00:10]} Bg7 {[%emt 0:00:25]} 5. Nc3 {[%emt 0:03:38]} Nc6 {[%emt 0:00:02]} 6. Be3 {[%emt 0:00:38]} Nf6 {[%emt 0:00:08]} 7. Bc4 {[%emt 0:00:27]} O-O {[%emt 0:00:02]} 8. O-O {[%emt 0:00:31]} Nxe4 {[%emt 0:07:30]} 9. Nxe4 {[%emt 0:16:58]} d5 {[%emt 0:00:52]} 10. Nxc6 {[%emt 0:05:29]} bxc6 {[%emt 0:00:06]} 11. Bd3 {[%emt 0:02:13]} dxe4 {[%emt 0:00:33]} 12. Bxe4 {[%emt 0:00:16]} Qc7 {[%emt 0:04:16]} 13. c3 {[%emt 0:04:54]} Rb8 {[%emt 0:07:22]} 14. Qe2 {[%emt 0:05:18]} Be6 {[%emt 0:07:05]} 15. Rfd1 {[%emt 0:04:31]} Qb7 {[%emt 0:03:24]} 16. b3 {[%emt 0:05:46]} Bd5 {[%emt 0:02:17]} 17. Bd4 {[%emt 0:00:38]} e5 {[%emt 0:02:08]} 18. Bc5 {[%emt 0:02:07]} Rfe8 {[%emt 0:01:04]} 19. Bd3 {[%emt 0:00:40]} f5 {[%emt 0:02:00]} 20. Ba6 {[%emt 0:00:48]} Qf7 {[%emt 0:01:57]} 21. c4 {[%emt 0:02:03]} Be6 {[%emt 0:00:23]} 22. Rd6 {[%emt 0:07:01]} e4 {[%emt 0:03:03]} 23. Rad1 {[%emt 0:03:26]} Qc7 {[%emt 0:01:48]} 24. f4 {[%emt 0:13:43]} Bf8 {[%emt 0:01:09]} 25. b4 {[%emt 0:00:47]} Bxd6 {[%emt 0:00:50]} 26. Bxd6 {[%emt 0:01:46]} Qb6+ {[%emt 0:00:01]} 27. c5 {[%emt 0:00:07]} Qxb4 {[%emt 0:00:10]} 28. h4 {[%emt 0:02:59]} Qc3 {[%emt 0:01:47]} 29. Rd2 {[%emt 0:01:10]} Rb1+ {[%emt 0:01:15]} 30. Kh2 {[%emt 0:00:08]} Qf6 {[%emt 0:01:03]} 31. Kg3 {[%emt 0:00:45]} Rh1 {[%emt 0:00:05]} 0-1

[Event "SixDays Budapest IM-B 09-2024"]
[Site "Budapest"]
[Date "2024.09.25"]
[Round "2.3"]
[White "Goldbeck, Lars"]
[Black "Tippa, Aswath Srisai"]
[Result "0-1"]
[ECO "E50"]
[WhiteElo "2359"]
[BlackElo "1648"]
[Annotator "RC"]
[PlyCount "76"]
[EventDate "2024.09.24"]
[EventType "tourn"]
[EventCountry "HUN"]
[SourceTitle "playchess.com"]
[Source "ChessBase"]
[SourceQuality "1"]
[TimeControl "5400+30"]

1. d4 {[%emt 0:00:04]} Nf6 {[%emt 0:10:28]} 2. c4 {[%emt 0:00:09]} e6 {[%emt 0:00:09]} 3. Nc3 {[%emt 0:00:04]} Bb4 {[%emt 0:00:15]} 4. e3 {[%emt 0:01:01]} O-O {[%emt 0:00:19]} 5. Nf3 {[%emt 0:00:25]} b6 {[%emt 0:02:31]} 6. Bd3 {[%emt 0:00:28]} d5 {[%emt 0:00:26]} 7. cxd5 {[%emt 0:04:03]} exd5 {[%emt 0:00:10]} 8. Bd2 {[%emt 0:00:11]} Bb7 {[%emt 0:00:58]} 9. O-O {[%emt 0:11:29]} Re8 {[%emt 0:00:11]} 10. Nb5 {[%emt 0:09:14]} Bf8 {[%emt 0:01:24]} 11. Rc1 {[%emt 0:03:36]} c5 {[%emt 0:02:25]} 12. dxc5 {[%emt 0:01:28]} bxc5 {[%emt 0:01:41]} 13. Bc3 {[%emt 0:02:24]} Nbd7 {[%emt 0:02:19]} 14. Bf5 {[%emt 0:05:50]} a6 {[%emt 0:05:00]} 15. Na3 {[%emt 0:00:38]} Ne4 {[%emt 0:01:43]} 16. Be1 {[%emt 0:01:45]} Ndf6 {[%emt 0:01:12]} 17. Qa4 {[%emt 0:06:06]} a5 {[%emt 0:02:37]} 18. Bc3 {[%emt 0:01:08]} Ba6 {[%emt 0:05:22]} 19. Rfe1 {[%emt 0:01:20]} Bd3 {[%emt 0:13:00]} 20. Bh3 {[%emt 0:00:28]} Nxc3 {[%emt 0:00:24]} 21. bxc3 {[%emt 0:05:18]} Rb8 {[%emt 0:00:33]} 22. Red1 {[%emt 0:04:45]} Be2 {[%emt 0:03:40]} 23. Rd2 {[%emt 0:00:58]} Re4 {[%emt 0:03:31]} 24. Qc2 {[%emt 0:02:14]} Bxf3 {[%emt 0:00:10]} 25. gxf3 {[%emt 0:00:08]} Rh4 {[%emt 0:00:11]} 26. Bg2 {[%emt 0:01:58]} c4 {[%emt 0:00:51]} 27. Nb1 {[%emt 0:00:35]} Qc8 {[%emt 0:03:59]} 28. Rd4 {[%emt 0:03:35]} Rh6 {[%emt 0:01:57]} 29. Qe2 {[%emt 0:02:44]} Qf5 {[%emt 0:00:41]} 30. Qf1 {[%emt 0:03:21]} Bd6 {[%emt 0:03:59]} 31. h3 {[%emt 0:03:00]} g5 {[%emt 0:07:02]} 32. Qd1 {[%emt 0:03:47]} Be5 {[%emt 0:01:58]} 33. Rd2 {[%emt 0:01:21]} Rxh3 {[%emt 0:00:55]} 34. Qc2 {[%emt 0:09:40]} Rxf3 {[%emt 0:01:43]} 35. Bxf3 {[%emt 0:02:02]} Qxf3 {[%emt 0:00:11]} 36. Kf1 {[%emt 0:01:00]} Ne4 {[%emt 0:00:18]} 37. Rdd1 {[%emt 0:00:18]} Rb6 {[%emt 0:00:54]} 38. Nd2 {[%emt 0:02:11]} Qxf2# {[%emt 0:00:10]} 0-1

[Event "SixDays Budapest IM-B 09-2024"]
[Site "Budapest"]
[Date "2024.09.25"]
[Round "2.4"]
[White "Polyik, Peter"]
[Black "Pribelszky, Bence Daniel"]
[Result "1-0"]
[ECO "B47"]
[WhiteElo "2304"]
[BlackElo "2408"]
[Annotator "RC"]
[PlyCount "51"]
[EventDate "2024.09.24"]
[EventType "tourn"]
[EventCountry "HUN"]
[SourceTitle "playchess.com"]
[Source "ChessBase"]
[SourceQuality "1"]
[TimeControl "5400+30"]

1. e4 {[%emt 0:01:17]} c5 {[%emt 0:06:57]} 2. Nf3 {[%emt 0:00:07]} e6 {[%emt 0:00:08]} 3. d4 {[%emt 0:00:04]} cxd4 {[%emt 0:00:06]} 4. Nxd4 {[%emt 0:00:03]} Nc6 {[%emt 0:00:09]} 5. Nc3 {[%emt 0:00:06]} Qc7 {[%emt 0:00:05]} 6. Be2 {[%emt 0:00:26]} a6 {[%emt 0:00:08]} 7. Nxc6 {[%emt 0:00:13]} Qxc6 {[%emt 0:01:59]} 8. O-O {[%emt 0:00:50]} b5 {[%emt 0:01:10]} 9. Bf3 {[%emt 0:00:54]} Bb7 {[%emt 0:01:01]} 10. Re1 {[%emt 0:01:07]} Rc8 {[%emt 0:04:10]} 11. a4 {[%emt 0:10:33]} b4 {[%emt 0:02:48]} 12. e5 {[%emt 0:00:45]} Qc7 {[%emt 0:00:10]} 13. Bxb7 {[%emt 0:00:07]} Qxb7 {[%emt 0:00:04]} 14. Ne4 {[%emt 0:00:09]} Qc7 {[%emt 0:22:34]} 15. Bg5 {[%emt 0:18:18]} h6 {[%emt 0:05:28]} 16. Bh4 {[%emt 0:00:32]} h5 {[%emt 0:32:26]} 17. Rc1 {[%emt 0:07:09]} Qb6 {[%emt 0:15:52]} 18. Re3 {[%emt 0:10:09]} Bc5 {[%emt 0:03:09]} 19. Rg3 {[%emt 0:06:46]} Rh7 {[%emt 0:00:08]} 20. Qd3 {[%emt 0:02:50]} g6 {[%emt 0:00:06]} 21. Rd1 {[%emt 0:00:34]} Qb7 {[%emt 0:00:28]} 22. Qd6 {[%emt 0:11:21]} Ba7 {[%emt 0:01:47]} 23. Rgd3 {[%emt 0:09:18]} Rc7 {[%emt 0:00:06]} 24. Bd8 {[%emt 0:00:49]} Rxc2 {[%emt 0:00:55]} 25. Nf6+ {[%emt 0:00:11]} Nxf6 {[%emt 0:00:07]} 26. Qe7# {[%emt 0:00:04]} 1-0

[Event "SixDays Budapest IM-B 09-2024"]
[Site "Budapest"]
[Date "2024.09.25"]
[Round "2.5"]
[White "Nissinen, Niilo Man"]
[Black "Li, Xueyi"]
[Result "0-1"]
[ECO "B12"]
[WhiteElo "2159"]
[BlackElo "2187"]
[Annotator "RC"]
[PlyCount "54"]
[EventDate "2024.09.24"]
[EventType "tourn"]
[EventCountry "HUN"]
[SourceTitle "playchess.com"]
[Source "ChessBase"]
[SourceQuality "1"]
[TimeControl "5400+30"]

1. e4 {[%emt 0:00:04]} c6 {[%emt 0:00:02]} 2. d4 {[%emt 0:00:09]} d5 {[%emt 0:00:03]} 3. e5 {[%emt 0:00:12]} Bf5 {[%emt 0:00:06]} 4. h4 {[%emt 0:00:29]} h5 {[%emt 0:00:14]} 5. c4 {[%emt 0:00:18]} e6 {[%emt 0:00:11]} 6. Nc3 {[%emt 0:00:12]} Ne7 {[%emt 0:00:05]} 7. Nge2 {[%emt 0:00:36]} a6 {[%emt 0:06:04]} 8. a4 {[%emt 0:12:50]} dxc4 {[%emt 0:04:03]} 9. Ng3 {[%emt 0:01:47]} Bd3 {[%emt 0:00:11]} 10. Bxd3 {[%emt 0:01:53]} cxd3 {[%emt 0:00:07]} 11. Qxd3 {[%emt 0:01:38]} c5 {[%emt 0:06:37]} 12. Nge4 {[%emt 0:17:30]} Nf5 {[%emt 0:03:59]} 13. d5 {[%emt 0:02:01]} Nc6 {[%emt 0:02:30]} 14. Nd6+ {[%emt 0:02:25]} Bxd6 {[%emt 0:02:22]} 15. dxc6 {[%emt 0:00:36]} Bxe5 {[%emt 0:00:58]} 16. cxb7 {[%emt 0:00:43]} Rb8 {[%emt 0:00:45]} 17. Qxa6 {[%emt 0:05:13]} O-O {[%emt 0:01:42]} 18. Bg5 {[%emt 0:03:21]} Qc7 {[%emt 0:04:08]} 19. O-O {[%emt 0:02:12]} Rxb7 {[%emt 0:03:16]} 20. Rab1 {[%emt 0:10:09]} Rb4 {[%emt 0:01:20]} 21. Qe2 {[%emt 0:05:16]} f6 {[%emt 0:05:40]} 22. Nb5 {[%emt 0:10:18]} Qf7 {[%emt 0:03:23]} 23. Rfe1 {[%emt 0:06:13]} Rxa4 {[%emt 0:05:25]} 24. Qc2 {[%emt 0:03:17]} Ra5 {[%emt 0:06:54]} 25. Qc4 {[%emt 0:02:55]} Rb8 {[%emt 0:03:13]} 26. Rxe5 {[%emt 0:01:21]} Raxb5 {[%emt 0:01:41]} 27. Rxe6 {[%emt 0:01:38]} Nd4 {[%emt 0:00:57]} 0-1

[Event "SixDays Budapest IM-B 09-2024"]
[Site "Budapest"]
[Date "2024.09.25"]
[Round "3.1"]
[White "Valkova, Angelika"]
[Black "Polyik, Peter"]
[Result "0-1"]
[ECO "D31"]
[WhiteElo "2068"]
[BlackElo "2304"]
[Annotator "RC"]
[PlyCount "88"]
[EventDate "2024.09.24"]
[EventType "tourn"]
[EventCountry "HUN"]
[SourceTitle "playchess.com"]
[Source "ChessBase"]
[SourceQuality "1"]
[TimeControl "5400+30"]

1. d4 {[%emt 0:00:04]} d5 {[%emt 0:07:22]} 2. c4 {[%emt 0:00:07]} e6 {[%emt 0:00:05]} 3. Nc3 {[%emt 0:00:05]} Bb4 {[%emt 0:00:06]} 4. e3 {[%emt 0:00:15]} Nf6 {[%emt 0:00:17]} 5. a3 {[%emt 0:00:09]} Bxc3+ {[%emt 0:00:08]} 6. bxc3 {[%emt 0:00:05]} c6 {[%emt 0:04:01]} 7. a4 {[%emt 0:00:07]} O-O {[%emt 0:00:06]} 8. Ba3 {[%emt 0:00:58]} Re8 {[%emt 0:00:05]} 9. Nf3 {[%emt 0:00:23]} b6 {[%emt 0:00:46]} 10. cxd5 {[%emt 0:00:08]} cxd5 {[%emt 0:00:06]} 11. Bb5 {[%emt 0:00:08]} Bd7 {[%emt 0:00:06]} 12. Bd3 {[%emt 0:00:08]} Nc6 {[%emt 0:10:59]} 13. O-O {[%emt 0:00:15]} e5 {[%emt 0:01:19]} 14. dxe5 {[%emt 0:00:27]} Nxe5 {[%emt 0:00:19]} 15. Nxe5 {[%emt 0:00:07]} Rxe5 {[%emt 0:00:03]} 16. Bb2 {[%emt 0:00:17]} Qc7 {[%emt 0:12:12]} 17. c4 {[%emt 0:07:31]} Rh5 {[%emt 0:03:06]} 18. f4 {[%emt 0:00:14]} Bg4 {[%emt 0:06:06]} 19. Be2 {[%emt 0:00:38]} Bxe2 {[%emt 0:00:26]} 20. Qxe2 {[%emt 0:00:05]} Qxc4 {[%emt 0:00:06]} 21. Qf3 {[%emt 0:09:29]} Rh6 {[%emt 0:04:21]} 22. Rfc1 {[%emt 0:14:37]} Qb3 {[%emt 0:06:35]} 23. Bd4 {[%emt 0:01:46]} Re8 {[%emt 0:12:00]} 24. a5 {[%emt 0:05:39]} Ne4 {[%emt 0:05:40]} 25. axb6 {[%emt 0:14:28]} axb6 {[%emt 0:00:23]} 26. Qg4 {[%emt 0:10:13]} Rg6 {[%emt 0:00:40]} 27. Qd7 {[%emt 0:02:53]} Nf6 {[%emt 0:01:05]} 28. Qb7 {[%emt 0:07:56]} h5 {[%emt 0:04:58]} 29. Ra7 {[%emt 0:05:23]} Kh7 {[%emt 0:02:28]} 30. Qxb6 {[%emt 0:06:04]} Qd3 {[%emt 0:07:11]} 31. Qc7 {[%emt 0:07:18]} Rxe3 {[%emt 0:06:09]} 32. Bxe3 {[%emt 0:02:08]} Qxe3+ {[%emt 0:00:08]} 33. Kh1 {[%emt 0:01:45]} Ne4 {[%emt 0:00:08]} 34. Ra2 {[%emt 0:01:26]} Nf2+ {[%emt 0:00:54]} 35. Rxf2 {[%emt 0:00:29]} Qxf2 {[%emt 0:00:05]} 36. Rg1 {[%emt 0:01:36]} f6 {[%emt 0:06:25]} 37. Qd7 {[%emt 0:00:04]} d4 {[%emt 0:00:22]} 38. Qf5 {[%emt 0:00:12]} Kh6 {[%emt 0:00:23]} 39. g3 {[%emt 0:03:19]} Qf3+ {[%emt 0:00:05]} 40. Rg2 {[%emt 0:00:04]} d3 {[%emt 0:00:51]} 41. Qd7 {[%emt 0:00:19]} f5 {[%emt 0:00:36]} 42. Qc8 {[%emt 0:01:25]} Rc6 {[%emt 0:00:54]} 43. Qh8+ {[%emt 0:00:07]} Kg6 {[%emt 0:00:02]} 44. Qe8+ {[%emt 0:00:08]} Kh7 {[%emt 0:00:03]} 0-1

[Event "SixDays Budapest IM-B 09-2024"]
[Site "Budapest"]
[Date "2024.09.25"]
[Round "3.2"]
[White "Li, Xueyi"]
[Black "Nanditha V"]
[Result "1-0"]
[ECO "E62"]
[WhiteElo "2187"]
[BlackElo "1903"]
[Annotator "RC"]
[PlyCount "51"]
[EventDate "2024.09.24"]
[EventType "tourn"]
[EventCountry "HUN"]
[SourceTitle "playchess.com"]
[Source "ChessBase"]
[SourceQuality "1"]
[TimeControl "5400+30"]

1. d4 {[%emt 0:00:03]} Nf6 {[%emt 0:00:10]} 2. c4 {[%emt 0:00:09]} g6 {[%emt 0:00:03]} 3. g3 {[%emt 0:00:05]} Bg7 {[%emt 0:00:03]} 4. Bg2 {[%emt 0:00:05]} O-O {[%emt 0:00:04]} 5. Nc3 {[%emt 0:00:05]} d6 {[%emt 0:00:04]} 6. Nf3 {[%emt 0:00:05]} Nc6 {[%emt 0:00:36]} 7. O-O {[%emt 0:00:08]} e5 {[%emt 0:00:36]} 8. dxe5 {[%emt 0:00:31]} dxe5 {[%emt 0:00:27]} 9. Bg5 {[%emt 0:00:20]} Qe8 {[%emt 0:19:35]} 10. Nd5 {[%emt 0:10:12]} Nxd5 {[%emt 0:03:25]} 11. cxd5 {[%emt 0:00:06]} Ne7 {[%emt 0:06:22]} 12. e4 {[%emt 0:00:52]} f6 {[%emt 0:03:54]} 13. Be3 {[%emt 0:01:56]} Kh8 {[%emt 0:02:34]} 14. Rc1 c6 {[%emt 0:01:12]} 15. Nd2 {[%emt 0:01:47]} f5 {[%emt 0:04:49]} 16. Bc5 {[%emt 0:02:56]} cxd5 {[%emt 0:11:38]} 17. exd5 {[%emt 0:01:39]} e4 {[%emt 0:01:14]} 18. Nc4 {[%emt 0:01:29]} b6 {[%emt 0:00:45]} 19. Bd4 {[%emt 0:00:44]} Ba6 {[%emt 0:03:02]} 20. Bxg7+ {[%emt 0:04:06]} Kxg7 {[%emt 0:04:08]} 21. Qd4+ {[%emt 0:00:08]} Rf6 {[%emt 0:00:24]} 22. f3 {[%emt 0:05:22]} exf3 {[%emt 0:08:41]} 23. Bxf3 {[%emt 0:02:21]} Rd8 {[%emt 0:01:37]} 24. Rfe1 {[%emt 0:00:51]} Bxc4 {[%emt 0:00:49]} 25. Rxc4 {[%emt 0:00:59]} Qd7 {[%emt 0:00:45]} 26. Qe5 {[%emt 0:01:21]} 1-0